fUST/lending_fUST_20250516
["ID","MTS","AMOUNT","RATE_DAILY","PERIOD"]
[361222190,1747356653144,-450.0,0.00013972,2]
[361222191,1747356653154,-450.0,0.00013972,2]
[361222192,1747356653163,-1028.06,0.00013972,2]
[361222193,1747356653173,-2196.2,0.00013972,2]
[361222194,1747356653182,-1224.08,0.00013972,2]
[361222195,1747356653191,-350.51148322,0.00013972,2]
[361222196,1747356653201,-489.11,0.00013972,2]
[361222197,1747356653210,-450.0,0.00013972,2]
[361222198,1747356653219,-920.51,0.00013972,2]
[361222199,1747356653229,-450.0,0.00013972,2]
[361222200,1747356653238,-450.0,0.00013972,2]
[361222201,1747356653247,-594.99,0.00013972,2]
[361222202,1747356653256,-874.36,0.00013972,2]
[361222203,1747356653265,-450.0,0.00013972,2]
[361222204,1747356653274,-450.0,0.00013972,2]
[361222205,1747356653283,-450.0,0.00013972,2]
[361222206,1747356653293,-626.99,0.00013972,2]
[361222207,1747356653302,-450.0,0.00013972,2]
[361222208,1747356653312,-450.0,0.00013972,2]
[361222209,1747356653321,-576.29,0.00013972,2]
[361222210,1747356653330,-835.16,0.00013972,2]
[361222211,1747356653340,-867.19,0.00013972,2]
[361222212,1747356653349,-637.51,0.00013972,2]
[361222213,1747356653359,-547.23731397,0.00013972,2]
[361222214,1747356653368,-1791.28,0.00013972,2]
[361222215,1747356653378,-450.0,0.00013972,2]
[361222216,1747356653388,-450.0,0.00013972,2]
[361222217,1747356653397,-450.0,0.00013972,2]
[361222218,1747356653407,-527.66,0.00013972,2]
[361222219,1747356653416,-2147.63,0.00013972,2]
[361222220,1747356653426,-2543.12,0.00013972,2]
[361222221,1747356653435,-744.25,0.00013972,2]
[361222222,1747356653445,-450.0,0.00013972,2]
[361222223,1747356653458,-1668.72,0.00013972,2]
[361222224,1747356653468,-771.99,0.00013972,2]
[361222225,1747356653477,-450.0,0.00013972,2]
[361222226,1747356653486,-284.73367406,0.00013972,2]
[361222227,1747356653498,-450.0,0.00013972,2]
[361222228,1747356653507,-1167.31,0.00013972,2]
[361222229,1747356653516,-998.22,0.00013972,2]
[361222230,1747356653526,-1711.9,0.00013972,2]
[361222231,1747356653536,-192.26704378,0.00013972,2]
[361222232,1747356653546,-450.0,0.00013972,2]
[361222233,1747356653555,-450.0,0.00013972,2]
[361222234,1747356653565,-450.0,0.00013972,2]
[361222235,1747356653575,-450.0,0.00013972,2]
[361222236,1747356653585,-450.0,0.00013972,2]
[361222237,1747356653595,-1529.66,0.00013972,2]
[361222238,1747356653604,-450.0,0.00013972,2]
[361222239,1747356653614,-672.14,0.00013972,2]
[361222240,1747356653625,-450.0,0.00013972,2]
[361222241,1747356653634,-10111.69,0.00013972,2]
[361222242,1747356653644,-450.0,0.00013972,2]
[361222243,1747356653654,-1121.58,0.00013972,2]
[361222244,1747356653663,-450.0,0.00013972,2]
[361222245,1747356653675,-450.0,0.00013972,2]
[361222246,1747356653691,-1239.26,0.00013972,2]
[361222247,1747356653706,-450.0,0.00013972,2]
[361222248,1747356653722,-450.0,0.00013972,2]
[361222249,1747356653734,-2211.88,0.00013972,2]
[361222250,1747356653746,-450.0,0.00013972,2]
[361222251,1747356653759,-450.0,0.00013972,2]
[361222252,1747356653772,-935.9,0.00013972,2]
[361222253,1747356653786,-450.0,0.00013972,2]
[361222254,1747356653799,-450.0,0.00013972,2]
[361222255,1747356653812,-450.0,0.00013972,2]
[361222256,1747356653826,-8394.09,0.00013972,2]
[361222257,1747356653840,-450.0,0.00013972,2]
[361222258,1747356653853,-7576.16,0.00013972,2]
[361222259,1747356653866,-450.0,0.00013972,2]
[361222260,1747356653878,-539.75,0.00013972,2]
[361222261,1747356653890,-679.88,0.00013972,2]
[361222262,1747356653903,-622.52,0.00013972,2]
[361222263,1747356653916,-495.35,0.00013972,2]
[361222264,1747356653929,-450.0,0.00013972,2]
[361222265,1747356653940,-1113.56,0.00013972,2]
[361222266,1747356653951,-640.02,0.00013972,2]
[361222267,1747356653963,-449.08448175,0.00013972,2]
[361222271,1747356865804,-9446.0,0.00012711,2]
[361222273,1747357189890,-180.62418459,0.00012512,2]
[361222274,1747357189912,-591.0,0.0001271,2]
[361222275,1747357189934,-300.0,0.0001271,2]
[361222276,1747357189955,-15454.0,0.00012711,2]
[361222277,1747357189976,-284.1694034,0.00012779,2]
[361222278,1747357189997,-262.6861754,0.00013598,2]
[361222279,1747357190018,-500.0,0.00013697,2]
[361222280,1747357190040,-500.0,0.00013697,2]
[361222281,1747357190061,-500.0,0.00013697,2]
[361222282,1747357190082,-346.28488272,0.00013697,2]
[361222283,1747357190104,-268.62398806,0.00013697,2]
[361222284,1747357190129,-500.0,0.00013697,2]
[361222285,1747357190152,-500.0,0.00013697,2]
[361222286,1747357190173,-450.0,0.00013698,2]
[361222287,1747357190194,-172.893943,0.00013698,2]
[361222288,1747357190216,-172.893943,0.00013698,2]
[361222289,1747357190239,-400.0,0.00013698,2]
[361222290,1747357190261,-172.893943,0.00013698,2]
[361222291,1747357190283,-172.893943,0.00013698,2]
[361222292,1747357190304,-400.0,0.00013698,2]
[361222293,1747357190325,-445.44778477,0.00013698,2]
[361222294,1747357190347,-172.893943,0.00013698,2]
[361222295,1747357190368,-172.893943,0.00013698,2]
[361222296,1747357190389,-172.893943,0.00013698,2]
[361222297,1747357190411,-172.893943,0.00013698,2]
[361222298,1747357190432,-450.0,0.00013698,2]
[361222299,1747357190454,-450.0,0.00013698,2]
[361222300,1747357190476,-450.0,0.00013698,2]
[361222301,1747357190500,-721.82,0.00013698,2]
[361222302,1747357190520,-549.42,0.00013698,2]
[361222303,1747357190540,-450.0,0.00013698,2]
[361222304,1747357190561,-450.0,0.00013698,2]
[361222305,1747357190581,-43.77203706,0.00013698,2]
[361222313,1747357252159,190.45577098,0.00027397,120]
[361222315,1747357347070,5166.31407034,0.00027575,120]
[361222316,1747357556317,162.4960314,0.00027397,120]
[361222323,1747357655540,10000.0,0.0002739,120]
[361222372,1747357832576,-7168.0,0.00012698,2]
[361222373,1747357832585,-250.0,0.00012753,2]
[361222374,1747357832594,-1200.0,0.00013695,2]
[361222375,1747357832603,-176.0,0.00013696,2]
[361222376,1747357832612,-300.0,0.00013696,2]
[361222377,1747357832621,-300.0,0.00013696,2]
[361222378,1747357832630,-441.00326183,0.00013697,2]
[361222379,1747357832639,-389.21640684,0.00013697,2]
[361222380,1747357832649,-631.15590163,0.00013697,2]
[361222381,1747357832658,-500.0,0.00013697,2]
[361222382,1747357832667,-555.89796331,0.00013697,2]
[361222383,1747357832677,-500.0,0.00013697,2]
[361222384,1747357832686,-500.0,0.00013697,2]
[361222385,1747357832695,-329.90989242,0.00013697,2]
[361222386,1747357832704,-500.0,0.00013697,2]
[361222387,1747357832713,-500.0,0.00013697,2]
[361222391,1747357832722,-500.0,0.00013697,2]
[361222394,1747357832731,-500.0,0.00013697,2]
[361222397,1747357832740,-500.0,0.00013697,2]
[361222400,1747357832749,-500.0,0.00013697,2]
[361222403,1747357832758,-500.0,0.00013697,2]
[361222406,1747357832767,-250.0,0.00013697,2]
[361222408,1747357832776,-200.0,0.00013697,2]
[361222410,1747357832786,-500.0,0.00013697,2]
[361222412,1747357832796,-500.0,0.00013697,2]
[361222414,1747357832809,-300.0,0.00013697,2]
[361222416,1747357832819,-500.0,0.00013697,2]
[361222418,1747357832828,-500.0,0.00013697,2]
[361222420,1747357832837,-500.0,0.00013697,2]
[361222422,1747357832847,-500.0,0.00013697,2]
[361222424,1747357832855,-300.0,0.00013697,2]
[361222426,1747357832864,-500.0,0.00013697,2]
[361222428,1747357832874,-200.0,0.00013697,2]
[361222430,1747357832884,-500.0,0.00013697,2]
[361222432,1747357832894,-500.0,0.00013697,2]
[361222434,1747357832903,-500.0,0.00013697,2]
[361222436,1747357832912,-500.0,0.00013697,2]
[361222438,1747357832922,-500.0,0.00013697,2]
[361222440,1747357832931,-500.0,0.00013697,2]
[361222441,1747357832940,-500.0,0.00013697,2]
[361222443,1747357832949,-353.18255642,0.00013697,2]
[361222445,1747357832958,-500.0,0.00013697,2]
[361222447,1747357832968,-500.0,0.00013697,2]
[361222449,1747357832977,-500.0,0.00013697,2]
[361222451,1747357832986,-500.0,0.00013697,2]
[361222453,1747357832995,-500.0,0.00013697,2]
[361222455,1747357833005,-500.0,0.00013697,2]
[361222457,1747357833014,-500.0,0.00013697,2]
[361222459,1747357833023,-500.0,0.00013697,2]
[361222461,1747357833033,-250.0,0.00013697,2]
[361222463,1747357833044,-500.0,0.00013697,2]
[361222465,1747357833053,-500.0,0.00013697,2]
[361222467,1747357833064,-500.0,0.00013697,2]
[361222469,1747357833074,-500.0,0.00013697,2]
[361222471,1747357833084,-500.0,0.00013697,2]
[361222473,1747357833094,-500.0,0.00013697,2]
[361222475,1747357833104,-345.0,0.00013697,2]
[361222477,1747357833113,-500.0,0.00013697,2]
[361222479,1747357833123,-500.0,0.00013697,2]
[361222481,1747357833133,-500.0,0.00013697,2]
[361222483,1747357833143,-236.1092053,0.00013697,2]
[361222485,1747357833153,-500.0,0.00013697,2]
[361222487,1747357833162,-500.0,0.00013697,2]
[361222489,1747357833172,-500.0,0.00013697,2]
[361222491,1747357833181,-500.0,0.00013697,2]
[361222493,1747357833191,-500.0,0.00013697,2]
[361222495,1747357833200,-500.0,0.00013697,2]
[361222497,1747357833209,-500.0,0.00013697,2]
[361222499,1747357833219,-500.0,0.00013697,2]
[361222501,1747357833228,-553.49766005,0.00013697,2]
[361222503,1747357833238,-553.49766005,0.00013697,2]
[361222506,1747357833247,-553.49766005,0.00013697,2]
[361222507,1747357833256,-553.49766005,0.00013697,2]
[361222509,1747357833265,-553.49766005,0.00013697,2]
[361222511,1747357833275,-553.49766005,0.00013697,2]
[361222512,1747357833286,-553.49766005,0.00013697,2]
[361222513,1747357833296,-553.49766005,0.00013697,2]
[361222514,1747357833305,-553.49766005,0.00013697,2]
[361222516,1747357833316,-553.49766005,0.00013697,2]
[361222517,1747357833325,-553.49766005,0.00013697,2]
[361222518,1747357833335,-553.49766005,0.00013697,2]
[361222519,1747357833344,-553.49766005,0.00013697,2]
[361222521,1747357833354,-553.49766005,0.00013697,2]
[361222522,1747357833363,-553.49766005,0.00013697,2]
[361222523,1747357833372,-553.49766005,0.00013697,2]
[361222525,1747357833382,-553.49766005,0.00013697,2]
[361222526,1747357833391,-553.49766005,0.00013697,2]
[361222527,1747357833400,-553.49766005,0.00013697,2]
[361222528,1747357833411,-553.49766005,0.00013697,2]
[361222530,1747357833420,-553.49766005,0.00013697,2]
[361222531,1747357833429,-553.49766005,0.00013697,2]
[361222532,1747357833438,-553.49766005,0.00013697,2]
[361222533,1747357833448,-553.49766005,0.00013697,2]
[361222535,1747357833457,-553.49766005,0.00013697,2]
[361222536,1747357833466,-553.49766005,0.00013697,2]
[361222537,1747357833475,-553.49766005,0.00013697,2]
[361222538,1747357833484,-553.49766005,0.00013697,2]
[361222539,1747357833493,-553.49766005,0.00013697,2]
[361222540,1747357833503,-553.49766005,0.00013697,2]
[361222541,1747357833513,-553.49766005,0.00013697,2]
[361222542,1747357833522,-553.49766005,0.00013697,2]
[361222543,1747357833531,-553.49766005,0.00013697,2]
[361222544,1747357833545,-553.49766005,0.00013697,2]
[361222545,1747357833554,-553.49766005,0.00013697,2]
[361222546,1747357833564,-553.49766005,0.00013697,2]
[361222547,1747357833574,-553.49766005,0.00013697,2]
[361222548,1747357833584,-553.49766005,0.00013697,2]
[361222549,1747357833594,-553.49766005,0.00013697,2]
[361222550,1747357833604,-553.49766005,0.00013697,2]
[361222551,1747357833614,-553.49766005,0.00013697,2]
[361222552,1747357833623,-553.49766005,0.00013697,2]
[361222553,1747357833633,-553.49766005,0.00013697,2]
[361222554,1747357833643,-553.49766005,0.00013697,2]
[361222555,1747357833653,-553.49766005,0.00013697,2]
[361222556,1747357833663,-553.49766005,0.00013697,2]
[361222557,1747357833673,-553.49766005,0.00013697,2]
[361222558,1747357833683,-553.49766005,0.00013697,2]
[361222559,1747357833693,-553.49766005,0.00013697,2]
[361222560,1747357833702,-553.49766005,0.00013697,2]
[361222561,1747357833712,-553.49766005,0.00013697,2]
[361222562,1747357833721,-553.49766005,0.00013697,2]
[361222563,1747357833731,-553.49766005,0.00013697,2]
[361222564,1747357833741,-553.49766005,0.00013697,2]
[361222565,1747357833751,-553.49766005,0.00013697,2]
[361222566,1747357833761,-553.49766005,0.00013697,2]
[361222567,1747357833771,-553.49766005,0.00013697,2]
[361222568,1747357833780,-553.49766005,0.00013697,2]
[361222569,1747357833793,-553.49766005,0.00013697,2]
[361222570,1747357833806,-411.31302982,0.00013697,2]
[361222571,1747357833816,-500.0,0.00013697,2]
[361222572,1747357833827,-500.0,0.00013697,2]
[361222573,1747357833838,-275.72367792,0.00013697,2]
[361222574,1747357833847,-500.0,0.00013697,2]
[361222575,1747357833856,-500.0,0.00013697,2]
[361222576,1747357833867,-1257.23039923,0.00013697,2]
[361222577,1747357833878,-500.0,0.00013697,2]
[361222578,1747357833889,-1257.23039923,0.00013697,2]
[361222579,1747357833898,-500.0,0.00013697,2]
[361222580,1747357833908,-1257.23039923,0.00013697,2]
[361222581,1747357833919,-1257.23039923,0.00013697,2]
[361222582,1747357833929,-500.0,0.00013697,2]
[361222583,1747357833939,-1257.23039923,0.00013697,2]
[361222584,1747357833948,-500.0,0.00013697,2]
[361222585,1747357833959,-1257.23039923,0.00013697,2]
[361222586,1747357833969,-500.0,0.00013697,2]
[361222587,1747357833981,-1257.23039923,0.00013697,2]
[361222588,1747357833991,-1257.23039923,0.00013697,2]
[361222589,1747357834001,-1257.23039923,0.00013697,2]
[361222590,1747357834011,-1257.23039923,0.00013697,2]
[361222591,1747357834022,-1257.23039923,0.00013697,2]
[361222592,1747357834032,-1257.23039923,0.00013697,2]
[361222593,1747357834044,-1257.23039923,0.00013697,2]
[361222594,1747357834053,-1257.23039923,0.00013697,2]
[361222595,1747357834063,-1257.23039923,0.00013697,2]
[361222596,1747357834074,-1257.23039923,0.00013697,2]
[361222597,1747357834085,-1257.23039923,0.00013697,2]
[361222598,1747357834095,-1257.23039923,0.00013697,2]
[361222599,1747357834104,-1257.23039923,0.00013697,2]
[361222600,1747357834113,-1257.23039923,0.00013697,2]
[361222601,1747357834122,-1257.23039923,0.00013697,2]
[361222602,1747357834134,-500.0,0.00013697,2]
[361222603,1747357834144,-500.0,0.00013697,2]
[361222604,1747357834153,-500.0,0.00013697,2]
[361222605,1747357834163,-200.0,0.00013697,2]
[361222606,1747357834172,-500.0,0.00013697,2]
[361222607,1747357834185,-500.0,0.00013697,2]
[361222608,1747357834195,-500.0,0.00013697,2]
[361222609,1747357834204,-500.0,0.00013697,2]
[361222610,1747357834213,-500.0,0.00013697,2]
[361222611,1747357834222,-500.0,0.00013697,2]
[361222612,1747357834231,-500.0,0.00013697,2]
[361222613,1747357834241,-500.0,0.00013697,2]
[361222614,1747357834250,-500.0,0.00013697,2]
[361222615,1747357834260,-500.0,0.00013697,2]
[361222616,1747357834269,-500.0,0.00013697,2]
[361222617,1747357834279,-450.0,0.00013698,2]
[361222618,1747357834289,-450.0,0.00013698,2]
[361222619,1747357834299,-450.0,0.00013698,2]
[361222620,1747357834308,-450.0,0.00013698,2]
[361222621,1747357834318,-450.0,0.00013698,2]
[361222622,1747357834328,-200.0,0.00013698,2]
[361222623,1747357834337,-400.0,0.00013698,2]
[361222624,1747357834347,-450.0,0.00013698,2]
[361222625,1747357834356,-450.0,0.00013698,2]
[361222626,1747357834365,-450.0,0.00013698,2]
[361222627,1747357834374,-450.0,0.00013698,2]
[361222628,1747357834384,-450.0,0.00013698,2]
[361222629,1747357834393,-693.93,0.00013698,2]
[361222630,1747357834403,-244.62846713,0.00013698,2]
[361222631,1747357834412,-963.37,0.00013698,2]
[361222632,1747357834421,-400.0,0.00013698,2]
[361222633,1747357834431,-400.0,0.00013698,2]
[361222634,1747357834441,-400.0,0.00013698,2]
[361222635,1747357834451,-537.14,0.00013698,2]
[361222636,1747357834461,-400.0,0.00013698,2]
[361222637,1747357834470,-400.0,0.00013698,2]
[361222638,1747357834480,-450.0,0.00013698,2]
[361222639,1747357834490,-923.42,0.00013698,2]
[361222640,1747357834500,-309.89063897,0.00013698,2]
[361222641,1747357834509,-450.0,0.00013698,2]
[361222642,1747357834519,-450.0,0.00013698,2]
[361222643,1747357834529,-967.58,0.00013698,2]
[361222644,1747357834540,-450.0,0.00013698,2]
[361222645,1747357834551,-450.0,0.00013698,2]
[361222646,1747357834560,-765.07,0.00013698,2]
[361222647,1747357834570,-450.0,0.00013698,2]
[361222648,1747357834582,-300.0,0.00013698,2]
[361222649,1747357834591,-450.0,0.00013698,2]
[361222650,1747357834602,-691.74,0.00013698,2]
[361222651,1747357834610,-608.16,0.00013698,2]
[361222652,1747357834619,-450.0,0.00013698,2]
[361222653,1747357834629,-450.0,0.00013698,2]
[361222654,1747357834639,-450.0,0.00013698,2]
[361222655,1747357834649,-450.0,0.00013698,2]
[361222656,1747357834659,-450.0,0.00013698,2]
[361222657,1747357834669,-450.0,0.00013698,2]
[361222658,1747357834679,-638.83,0.00013698,2]
[361222659,1747357834689,-372.39060852,0.00013698,2]
[361222660,1747357834700,-495.52,0.00013698,2]
[361222661,1747357834709,-450.0,0.00013698,2]
[361222662,1747357834719,-607.82,0.00013698,2]
[361222663,1747357834728,-806.39,0.00013698,2]
[361222664,1747357834738,-450.0,0.00013698,2]
[361222665,1747357834748,-794.77,0.00013698,2]
[361222666,1747357834757,-450.0,0.00013698,2]
[361222667,1747357834767,-450.0,0.00013698,2]
[361222668,1747357834777,-450.0,0.00013698,2]
[361222669,1747357834789,-193.10488372,0.00013698,2]
[361222670,1747357834801,-1139.1,0.00013698,2]
[361222671,1747357834813,-450.0,0.00013698,2]
[361222672,1747357834822,-450.0,0.00013698,2]
[361222673,1747357834832,-450.0,0.00013698,2]
[361222674,1747357834842,-450.0,0.00013698,2]
[361222675,1747357834852,-534.91212099,0.00013698,2]
[361222676,1747357834863,-570.62,0.00013698,2]
[361222677,1747357834873,-450.0,0.00013698,2]
[361222678,1747357834884,-450.0,0.00013698,2]
[361222679,1747357834894,-638.12,0.00013698,2]
[361222680,1747357834903,-554.26,0.00013698,2]
[361222681,1747357834913,-450.0,0.00013698,2]
[361222682,1747357834922,-450.0,0.00013698,2]
[361222683,1747357834932,-598.78,0.00013698,2]
[361222684,1747357834942,-450.0,0.00013698,2]
[361222685,1747357834952,-400.0,0.00013698,2]
[361222686,1747357834961,-733.98,0.00013698,2]
[361222687,1747357834972,-450.0,0.00013698,2]
[361222688,1747357834982,-450.0,0.00013698,2]
[361222689,1747357834991,-450.0,0.00013698,2]
[361222690,1747357835001,-665.21,0.00013698,2]
[361222691,1747357835010,-450.0,0.00013698,2]
[361222692,1747357835020,-450.0,0.00013698,2]
[361222693,1747357835029,-811.08,0.00013698,2]
[361222694,1747357835042,-450.0,0.00013698,2]
[361222695,1747357835051,-450.0,0.00013698,2]
[361222696,1747357835061,-518.01,0.00013698,2]
[361222697,1747357835071,-450.0,0.00013698,2]
[361222698,1747357835080,-450.0,0.00013698,2]
[361222699,1747357835090,-514.70914688,0.00013698,2]
[361222700,1747357835099,-527.38,0.00013698,2]
[361222701,1747357835109,-450.0,0.00013698,2]
[361222702,1747357835118,-450.0,0.00013698,2]
[361222703,1747357835127,-530.91,0.00013698,2]
[361222704,1747357835137,-723.21,0.00013698,2]
[361222705,1747357835147,-547.99,0.00013698,2]
[361222706,1747357835157,-450.0,0.00013698,2]
[361222707,1747357835166,-450.0,0.00013698,2]
[361222708,1747357835176,-450.0,0.00013698,2]
[361222709,1747357835186,-450.0,0.00013698,2]
[361222710,1747357835195,-597.98,0.00013698,2]
[361222711,1747357835204,-450.0,0.00013698,2]
[361222712,1747357835213,-450.0,0.00013698,2]
[361222713,1747357835225,-450.0,0.00013698,2]
[361222714,1747357835235,-450.0,0.00013698,2]
[361222715,1747357835244,-740.45,0.00013698,2]
[361222716,1747357835253,-450.0,0.00013698,2]
[361222717,1747357835262,-450.0,0.00013698,2]
[361222718,1747357835271,-450.0,0.00013698,2]
[361222719,1747357835281,-518.81,0.00013698,2]
[361222720,1747357835294,-450.0,0.00013698,2]
[361222721,1747357835303,-450.0,0.00013698,2]
[361222722,1747357835313,-1776.94,0.00013698,2]
[361222723,1747357835323,-1234.97,0.00013698,2]
[361222724,1747357835332,-450.0,0.00013698,2]
[361222725,1747357835342,-1014.57,0.00013698,2]
[361222726,1747357835351,-450.0,0.00013698,2]
[361222727,1747357835361,-450.0,0.00013698,2]
[361222728,1747357835371,-425.20404636,0.00013698,2]
[361222729,1747357835381,-450.0,0.00013698,2]
[361222730,1747357835391,-2050.33,0.00013698,2]
[361222731,1747357835401,-350.0,0.00013698,2]
[361222732,1747357835411,-450.0,0.00013698,2]
[361222733,1747357835421,-872.12,0.00013698,2]
[361222734,1747357835431,-450.0,0.00013698,2]
[361222735,1747357835441,-503.28651076,0.00013698,2]
[361222736,1747357835451,-450.0,0.00013698,2]
[361222737,1747357835461,-564.51199739,0.00013698,2]
[361222738,1747357835475,-400.0,0.00013698,2]
[361222739,1747357835603,-450.0,0.00013698,2]
[361222740,1747357835636,-494.64,0.00013698,2]
[361222741,1747357835646,-526.52,0.00013698,2]
[361222742,1747357835655,-402.85015394,0.00013698,2]
[361222743,1747357835665,-247.96642624,0.00013698,2]
[361222744,1747357835674,-450.0,0.00013698,2]
[361222745,1747357835683,-260.58928928,0.00013698,2]
[361222746,1747357835693,-400.0,0.00013698,2]
[361222747,1747357835702,-1929.17,0.00013698,2]
[361222748,1747357835712,-825.45,0.00013698,2]
[361222749,1747357835721,-502.79,0.00013698,2]
[361222750,1747357835731,-403.18260697,0.00013698,2]
[361222751,1747357835740,-400.0,0.00013698,2]
[361222752,1747357835751,-400.0,0.00013698,2]
[361222753,1747357835760,-450.0,0.00013698,2]
[361222754,1747357835770,-603.28,0.00013698,2]
[361222755,1747357835779,-450.0,0.00013698,2]
[361222756,1747357835792,-450.0,0.00013698,2]
[361222757,1747357835805,-450.0,0.00013698,2]
[361222758,1747357835815,-450.0,0.00013698,2]
[361222759,1747357835824,-710.14,0.00013698,2]
[361222760,1747357835834,-450.0,0.00013698,2]
[361222761,1747357835844,-450.0,0.00013698,2]
[361222762,1747357835854,-450.0,0.00013698,2]
[361222763,1747357835863,-405.05391411,0.00013698,2]
[361222764,1747357835872,-401.68698194,0.00013698,2]
[361222765,1747357835882,-273.20431788,0.00013698,2]
[361222766,1747357835891,-1737.28,0.00013698,2]
[361222767,1747357835901,-450.0,0.00013698,2]
[361222768,1747357835910,-413.64323504,0.00013698,2]
[361222769,1747357835920,-1585.75,0.00013698,2]
[361222770,1747357835930,-326.80150934,0.00013698,2]
[361222771,1747357835940,-1977.7,0.00013698,2]
[361222772,1747357835949,-450.0,0.00013698,2]
[361222773,1747357835959,-409.2933375,0.00013698,2]
[361222774,1747357835968,-3671.09758477,0.00013698,2]
[361222775,1747357835987,-616.15756864,0.00013698,2]
[361222788,1747357838673,-2578.76297833,0.00013698,2]
[361222789,1747357838685,-2015.05186826,0.00013698,2]
[361222791,1747357838695,-1676.79,0.00013698,2]
[361222792,1747357838705,-309.14728528,0.00013698,2]
[361222793,1747357838716,-402.60723542,0.00013698,2]
[361222794,1747357838729,-103.07541518,0.00013698,2]
[361222795,1747357838739,-1022.61,0.00013698,2]
[361222796,1747357838748,-450.0,0.00013698,2]
[361222797,1747357838758,-413.11324403,0.00013698,2]
[361222798,1747357838768,-1250.85693771,0.00013698,2]
[361222799,1747357838781,-176.69306229,0.00013698,2]
[361222800,1747357838794,-450.0,0.00013698,2]
[361222801,1747357838808,-373.30693771,0.00013698,2]
[361222883,1747357843476,-327.91306229,0.00013698,2]
[361222884,1747357843485,-417.99448071,0.00013698,2]
[361222885,1747357843495,-2375.44,0.00013698,2]
[361222886,1747357843504,-8286.88,0.00013698,2]
[361222887,1747357843514,-450.0,0.00013698,2]
[361222888,1747357843523,-138.30361618,0.00013698,2]
[361222900,1747357846982,-0.12199281,0.00013698,2]
[361222901,1747357856216,886.791287,0.00027576,30]
[361222902,1747357961939,-300.0,0.00012746,2]
[361222903,1747357961959,-9721.0,0.00012747,2]
[361222904,1747358044660,-290.70444987,0.00012746,2]
[361222905,1747358046793,-9.29555013,0.00012746,2]
[361222906,1747358046817,-294.12119275,0.00012747,2]
[361222907,1747358050618,-300.0,0.00012747,2]
[361222908,1747358054844,-333.9551927,0.00012747,2]
[361222909,1747358056090,-151.70063652,0.00012747,2]
[361222910,1747358058951,-305.42821687,0.00012747,2]
[361222911,1747358062625,-238.10347877,0.00012747,2]
[361222912,1747358065389,-160.25887754,0.00012747,2]
[361222913,1747358066955,-175.77105193,0.00012747,2]
[361222914,1747358070427,-169.91242968,0.00012747,2]
[361222915,1747358072731,-236.4578936,0.00012747,2]
[361222916,1747358076050,-252.05480483,0.00012747,2]
[361222917,1747358077642,-177.77434013,0.00012747,2]
[361222918,1747358079133,-265.72981301,0.00012747,2]
[361222919,1747358080754,-194.256175,0.00012747,2]
[361222920,1747358084243,-196.47763723,0.00012747,2]
[361222921,1747358086493,-288.16200006,0.00012747,2]
[361222922,1747358088617,-389.20936491,0.00012747,2]
[361222923,1747358090216,-194.84032017,0.00012747,2]
[361222925,1747358180037,-153.0109088,0.00012746,2]
[361222926,1747358182068,-26.9890912,0.00012746,2]
[361222927,1747358182094,-202.91503132,0.00012746,2]
[361222928,1747358184114,-97.08496868,0.00012746,2]
[361222929,1747358184137,-166.94641052,0.00012747,2]
[361222930,1747358187472,-308.21799783,0.00012747,2]
[361222931,1747358189575,-210.36202786,0.00012747,2]